Workbook

Sheet 项目详细进度计划
A1: 江苏广靖锡澄高速公路营运管理平台项目详细进度计划
A2: 项目名称: | H2: =COUNT(#REF!) -> 0
A3: 当前状态 | B3: WBS | C3: 任务说明 | D3: 参与人员 | E3: 计划 开始日期 | F3: 计划 完成日期 | G3: 计划工作量 (人时) | H3: 实际 开始日期 | I3: 实际 结束日期 | J3: 实际工作量 (人时) | K3: 进度偏差 (天) | L3: 工作量偏差 (人时) | M3: Remark
A4: =IF(AND(B4="",C4=""),"",IF(H4="","Wait",IF(I4="","Processing","Finished"))) -> Finished | B4: 需求调研与分析 | E4: =IF(COUNTA(E5:E11)>0,MIN(E5:E11),"") -> 2014-04-09 | F4: =IF(COUNTA(F5:F11)>0,MAX(F5:F11),"") -> 2014-04-25 | G4: =SUM(G5:G11) -> 388 | H4: =IF(COUNTA(H5:H11)>0,MIN(H5:H11),"") -> 2014-04-09 | I4: =IF(COUNTA(I5:I11)>0,MAX(I5:I11),"") -> 2014-04-25 | J4: =SUM(J5:J11) -> 376.5 | K4: =SUM(K5:K16) -> 22 | L4: =SUM(L5:L16) -> 145.5
A5: Finished | C5: 需求调研 | D5: 肖敏，王晖，朱红军 | E5: 2014-04-09 | F5: 2014-04-14 | G5: 120 | H5: 2014-04-09 | I5: 2014-04-14 | J5: 120 | K5: =IF(OR(F5=0,I5=0),0,I5-F5) -> 0 | L5: 0
A6: Finished | C6: 编制调研报告 | D6: 肖敏，王晖，朱红军 | E6: 2014-04-15 | F6: 2014-04-16 | G6: 48 | H6: 2014-04-14 | I6: 2014-04-15 | J6: 48 | K6: -1 | L6: 0
A7: Finished | C7: 与客户确认调研报告 | D7: 肖敏，王晖，朱红军，业主 | E7: 2014-04-17 | F7: 2014-04-18 | G7: 48 | H7: 2014-04-17 | I7: 2014-04-18 | J7: 48 | K7: 0 | L7: 0
A8: Finished | C8: 需求分析，编写需求规格说明书 | D8: 肖敏,王晖，朱红军 | E8: 2014-04-21 | F8: 2014-04-22 | G8: 48 | H8: 2014-04-21 | I8: 2014-04-22 | J8: 48 | K8: 0 | L8: 0
A9: Finished | C9: 评审需求规格说明书 | D9: 项目团队，业主 | E9: 2014-04-23 | F9: 2014-04-23 | G9: 96 | H9: 2014-04-23 | I9: 2014-04-23 | J9: 85.5 | K9: 0 | L9: -10.5
A10: Finished | C10: 需求规格说明书评审意见修改及定稿 | D10: 肖敏,王晖，朱红军 | E10: 2014-04-24 | F10: 2014-04-24 | G10: 24 | H10: 2014-04-24 | I10: 2014-04-24 | J10: 24 | K10: 0 | L10: 0
A11: Finished | C11: 发布需求基线 | D11: 袁晓冬，肖敏 | E11: 2014-04-25 | F11: 2014-04-25 | G11: 4 | H11: 2014-04-25 | I11: 2014-04-25 | J11: 3 | K11: 0 | L11: -1
A12: Finished | B12: 系统设计 | E12: =IF(COUNTA(E13:E21)>0,MIN(E13:E21),"") -> 2014-04-28 | F12: =IF(COUNTA(F13:F21)>0,MAX(F13:F21),"") -> 2014-05-15 | G12: =SUM(G13:G21) -> 562 | H12: =IF(COUNTA(H13:H21)>0,MIN(H13:H21),"") -> 2014-04-28 | I12: =IF(COUNTA(I13:I21)>0,MAX(I13:I21),"") -> 2014-05-21 | J12: =SUM(J13:J21) -> 728 | K12: =SUM(K13:K21) -> 24
A13: Finished | C13: 概要设计 | D13: 肖敏，徐永刚 | E13: 2014-04-28 | F13: 2014-05-04 | G13: 80 | H13: 2014-04-28 | I13: 2014-05-01 | J13: 64 | K13: =IF(OR(F13=0,I13=0),0,I13-F13) -> -3 | L13: -16
A14: =IF(AND(B14="",C14=""),"",IF(H14="","Wait",IF(I14="","Processing","Finished"))) -> Finished | C14: 技术框架决策分析 | D14: 肖敏，朱玲，徐永刚 | E14: 2014-05-05 | F14: 2014-05-05 | G14: 12 | H14: 2014-05-02 | I14: 2014-05-02 | J14: 15 | K14: =IF(OR(F14=0,I14=0),0,I14-F14) -> -3 | L14: =IF(OR(G14=0,J14=0),0,J14-G14) -> 3
A15: Finished | C15: 详细设计 | D15: 全体开发人员 | E15: 2014-05-06 | F15: 2014-05-12 | G15: 250 | H15: 2014-05-06 | I15: 2014-05-17 | J15: 416 | K15: =IF(OR(F15=0,I15=0),0,I15-F15) -> 5 | L15: =IF(OR(G15=0,J15=0),0,J15-G15) -> 166
A16: =IF(AND(B16="",C16=""),"",IF(H16="","Wait",IF(I16="","Processing","Finished"))) -> Finished | C16: 设计过程中提出的需求变更处理 | D16: 袁晓冬，肖敏 | E16: 2014-05-08 | F16: 2014-05-10 | G16: 8 | H16: 2014-05-08 | I16: 2014-05-10 | J16: 12 | K16: =IF(OR(F16=0,I16=0),0,I16-F16) -> 0 | L16: =IF(OR(G16=0,J16=0),0,J16-G16) -> 4
A17: Finished | C17: 建立模块开发管理表 | D17: 肖敏 | E17: 2014-05-06 | F17: 2014-05-06 | G17: 2 | H17: 2014-05-06 | I17: 2014-05-06 | J17: 3 | K17: =IF(OR(F17=0,I17=0),0,I17-F17) -> 0 | L17: =IF(OR(G17=0,J17=0),0,J17-G17) -> 1
A18: Finished | C18: 评审设计文档 | D18: 项目团队 | E18: 2014-05-13 | F18: 2014-05-13 | G18: 96 | H18: 2014-05-19 | I18: 2014-05-20 | J18: 104 | K18: =IF(OR(F18=0,I18=0),0,I18-F18) -> 7 | L18: =IF(OR(G18=0,J18=0),0,J18-G18) -> 8
A19: Finished | C19: 设计文档评审意见修改及定稿 | D19: 全体开发人员 | E19: 2014-05-14 | F19: 2014-05-15 | G19: 106 | H19: 2014-05-20 | I19: 2014-05-21 | J19: 106 | K19: =IF(OR(F19=0,I19=0),0,I19-F19) -> 6 | L19: =IF(OR(G19=0,J19=0),0,J19-G19) -> 0
A20: Finished | C20: 发布设计基线 | D20: 袁晓冬，肖敏 | E20: 2014-05-15 | F20: 2014-05-15 | G20: 4 | H20: 2014-05-21 | I20: 2014-05-21 | J20: 4 | K20: 6 | L20: 0
A21: Finished | C21: 编制需求与设计里程碑报告 | D21: 肖敏 | E21: 2014-05-15 | F21: 2014-05-15 | G21: 4 | H21: 2014-05-21 | I21: 2014-05-21 | J21: 4 | K21: 6 | L21: 0
A22: Finished | B22: 编码与测试 | E22: =IF(COUNTA(E23:E56)>0,MIN(E23:E56),"") -> 2014-05-16 | F22: =IF(COUNTA(F23:F56)>0,MAX(F23:F56),"") -> 2014-08-31 | G22: =SUM(G23:G56) -> 3633 | H22: =IF(COUNTA(H23:H56)>0,MIN(H23:H56),"") -> 2014-05-21 | I22: =IF(COUNTA(I23:I56)>0,MAX(I23:I56),"") -> 2014-08-31 | J22: =SUM(J23:J56) -> 3606 | K22: =SUM(K23:K56) -> 7
A23: Finished | C23: 制定编码规范 | D23: 徐永刚 | E23: 2014-05-16 | F23: 2014-05-16 | G23: 8 | H23: 2014-05-21 | I23: 2014-05-21 | J23: 4 | K23: =IF(OR(F23=0,I23=0),0,I23-F23) -> 5 | L23: -4
A24: Finished | C24: 测试用例设计 | D24: 朱玲，秦洁 | E24: 2014-05-16 | F24: 2014-06-13 | G24: 300 | H24: 2014-05-21 | I24: 2014-06-13 | J24: 288 | K24: =IF(OR(F24=0,I24=0),0,I24-F24) -> 0 | L24: =IF(OR(G24=0,J24=0),0,J24-G24) -> -12
A25: =IF(AND(B25="",C25=""),"",IF(H25="","Wait",IF(I25="","Processing","Finished"))) -> Finished | C25: 测试用例评审 | D25: 肖敏，徐永刚，朱玲，秦洁 | E25: 2014-06-16 | F25: 2014-06-18 | G25: 96 | H25: 2014-06-16 | I25: 2014-06-18 | J25: 92 | K25: =IF(OR(F25=0,I25=0),0,I25-F25) -> 0 | L25: =IF(OR(G25=0,J25=0),0,J25-G25) -> -4
A26: =IF(AND(B26="",C26=""),"",IF(H26="","Wait",IF(I26="","Processing","Finished"))) -> Finished | C26: 测试用例修改及定稿 | D26: 朱玲，秦洁 | E26: 2014-06-19 | F26: 2014-06-20 | G26: 32 | H26: 2014-06-19 | I26: 2014-06-20 | J26: 32 | K26: =IF(OR(F26=0,I26=0),0,I26-F26) -> 0 | L26: =IF(OR(G26=0,J26=0),0,J26-G26) -> 0
A27: Finished | C27: 页面设计 | D27: 顾丽郡 | E27: 2014-05-16 | F27: 2014-05-31 | G27: 80 | H27: 2014-05-21 | I27: 2014-06-02 | J27: 88 | K27: =IF(OR(F27=0,I27=0),0,I27-F27) -> 2 | L27: 8
A28: Finished | C28: 编码-M6-F05-基础支撑功能 | D28: 侍凡 | E28: 2014-05-16 | F28: 2014-06-13 | G28: 130 | H28: 2014-05-21 | I28: 2014-06-13 | J28: 135 | K28: 0 | L28: 5
A29: =IF(AND(B29="",C29=""),"",IF(H29="","Wait",IF(I29="","Processing","Finished"))) -> Finished | C29: 编码-M6-F03-GIS公共服务支撑 | D29: 肖敏 | E29: 2014-05-16 | F29: 2014-06-13 | G29: 64 | H29: 2014-05-21 | I29: 2014-06-12 | J29: 56 | K29: -1 | L29: -8
A30: Finished | C30: 编码-M1-F01-交通运行状态监测 | D30: 陈继伟 | E30: 2014-05-16 | F30: 2014-06-13 | G30: 130 | H30: 2014-05-21 | I30: 2014-06-14 | J30: 132 | K30: 1 | L30: 2
A31: Finished | C31: 编码-M1-F02-运行监测配置管理 | D31: 高宇庭 | E31: 2014-05-16 | F31: 2014-06-13 | G31: 130 | H31: 2014-05-21 | I31: 2014-06-12 | J31: 122 | K31: -1 | L31: -8
A32: Finished | C32: 编码-M2-F01-情报板管理 | D32: 徐永刚 | E32: 2014-05-19 | F32: 2014-06-06 | G32: 96 | H32: 2014-05-22 | I32: 2014-06-06 | J32: 96 | K32: =IF(OR(F32=0,I32=0),0,I32-F32) -> 0 | L32: =IF(OR(G32=0,J32=0),0,J32-G32) -> 0
A33: Finished | C33: 编码-M3-F02-事件填报 | D33: 徐永刚 | E33: 2014-06-09 | F33: 2014-06-13 | G33: 32 | H33: 2014-06-09 | I33: 2014-06-13 | J33: 32 | K33: 0 | L33: 0
A34: Finished | C34: 编码-M6-F01-视频组件服务 | D34: 潘彩侠 | E34: 2014-05-16 | F34: 2014-06-13 | G34: 130 | H34: 2014-05-21 | I34: 2014-06-13 | J34: 132 | K34: 0 | L34: 2
A35: Finished | C35: 编码-M6-F02-统一权限管理服务 | D35: 曹碧蓉 | E35: 2014-05-16 | F35: 2014-06-13 | G35: 130 | H35: 2014-05-21 | I35: 2014-06-13 | J35: 125 | K35: 0 | L35: -5
A36: Finished | C36: 第一阶段编译集成 | D36: 徐永刚 | E36: 2014-06-16 | F36: 2014-06-16 | G36: 4 | H36: 2014-06-16 | I36: 2014-06-16 | J36: 4 | K36: =IF(OR(F36=0,I36=0),0,I36-F36) -> 0 | L36: =IF(OR(G36=0,J36=0),0,J36-G36) -> 0
A37: Finished | C37: 第一阶段测试 | D37: 朱玲，秦洁 | E37: 2014-06-16 | F37: 2014-06-30 | G37: 168 | H37: 2014-06-16 | I37: 2014-06-30 | J37: 168 | K37: =IF(OR(F37=0,I37=0),0,I37-F37) -> 0 | L37: =IF(OR(G37=0,J37=0),0,J37-G37) -> 0
A38: Finished | C38: 第一阶段缺陷修复 | D38: 全体开发人员 | E38: 2014-06-18 | F38: 2014-06-30 | G38: 200 | H38: 2014-06-16 | I38: 2014-06-30 | J38: 200 | K38: 0 | L38: 0
A39: Finished | C39: 编码-M2-F02-号角广播管理 | D39: 侍凡 | E39: 2014-07-01 | F39: 2014-08-01 | G39: 150 | H39: 2014-07-01 | I39: 2014-08-04 | J39: 144 | K39: =IF(OR(F39=0,I39=0),0,I39-F39) -> 3 | L39: =IF(OR(G39=0,J39=0),0,J39-G39) -> -6
A40: =IF(AND(B40="",C40=""),"",IF(H40="","Wait",IF(I40="","Processing","Finished"))) -> Finished | C40: 编码-M2-F03-服务区AP信息推送 | D40: 侍凡 | E40: 2014-08-04 | F40: 2014-08-15 | G40: 64 | H40: 2014-08-05 | I40: 2014-08-15 | J40: 56 | K40: 0 | L40: -8
A41: Finished | C41: 编码-M3-F01-事件接入 | D41: 徐永刚 | E41: 2014-07-01 | F41: 2014-07-11 | G41: 55 | H41: 2014-07-01 | I41: 2014-07-10 | J41: 48 | K41: -1 | L41: -7
A42: Finished | C42: 编码-M3-F03-事件处置 | D42: 徐永刚 | E42: 2014-07-14 | F42: 2014-07-25 | G42: 128 | H42: 2014-07-11 | I42: 2014-07-25 | J42: 136 | K42: 0 | L42: 8
A43: Finished | C43: 编码-M3-F04-事件评估 | D43: 徐永刚 | E43: 2014-07-28 | F43: 2014-08-08 | G43: 128 | H43: 2014-07-28 | I43: 2014-08-07 | J43: 128 | K43: -1 | L43: 0
A44: Finished | C44: 编码-M3-F05-事件归档 | D44: 徐永刚 | E44: 2014-08-11 | F44: 2014-08-15 | G44: 32 | H44: 2014-08-08 | I44: 2014-08-15 | J44: 40 | K44: 0 | L44: 8
A45: Finished | C45: 编码-M3-F06-预案管理 | D45: 高宇庭 | E45: 2014-07-01 | F45: 2014-08-01 | G45: 150 | H45: 2014-07-01 | I45: 2014-08-01 | J45: 156 | K45: =IF(OR(F45=0,I45=0),0,I45-F45) -> 0 | L45: =IF(OR(G45=0,J45=0),0,J45-G45) -> 6
A46: Finished | C46: 编码-M3-F07-知识管理 | D46: 高宇庭 | E46: 2014-08-04 | F46: 2014-08-15 | G46: 64 | H46: 2014-08-04 | I46: 2014-08-15 | J46: 64 | K46: 0 | L46: 0
A47: Finished | C47: 编码-M4-F01-值班辅助管理 | D47: 潘彩侠 | E47: 2014-07-01 | F47: 2014-08-01 | G47: 150 | H47: 2014-07-01 | I47: 2014-08-01 | J47: 144 | K47: 0 | L47: -6
A48: Finished | C48: 编码-M4-F02-业务辅助管理 | D48: 潘彩侠 | E48: 2014-08-04 | F48: 2014-08-15 | G48: 64 | H48: 2014-08-04 | I48: 2014-08-15 | J48: 64 | K48: 0 | L48: 0
A49: Finished | C49: 编码-M4-F03-辅助决策 | D49: 陈继伟 | E49: 2014-07-01 | F49: 2014-08-15 | G49: 215 | H49: 2014-07-01 | I49: 2014-08-15 | J49: 224 | K49: 0 | L49: 9
A50: Finished | C50: 编码-M5-F01-清排障车辆GPS信息管理 | D50: 肖敏 | E50: 2014-07-01 | F50: 2014-08-15 | G50: 120 | H50: 2014-07-01 | I50: 2014-08-15 | J50: 108 | K50: 0 | L50: -12
A51: Finished | C51: 编码-M6-F04-统一通信与软交换服务 | D51: 曹碧蓉 | E51: 2014-07-01 | F51: 2014-08-15 | G51: 215 | H51: 2014-07-01 | I51: 2014-08-15 | J51: 216 | K51: 0 | L51: 1
A52: Finished | C52: 整体编译集成 | D52: 徐永刚 | E52: 2014-08-18 | F52: 2014-08-18 | G52: 4 | H52: 2014-08-18 | I52: 2014-08-18 | J52: 4 | K52: 0 | L52: 0
A53: Finished | C53: 整体测试 | D53: 朱玲，秦洁 | E53: 2014-08-18 | F53: 2014-08-31 | G53: 140 | H53: 2014-08-18 | I53: 2014-08-31 | J53: 140 | K53: 0 | L53: 0
A54: Finished | C54: 测试缺陷修复 | D54: 全体开发人员 | E54: 2014-08-20 | F54: 2014-08-31 | G54: 200 | H54: 2014-08-20 | I54: 2014-08-31 | J54: 200 | K54: 0 | L54: 0
A55: =IF(AND(B55="",C55=""),"",IF(H55="","Wait",IF(I55="","Processing","Finished"))) -> Finished | C55: 用户手册编写 | D55: 秦洁 | E55: 2014-08-25 | F55: 2014-08-29 | G55: 20 | H55: 2014-08-25 | I55: 2014-08-29 | J55: 24 | K55: =IF(OR(F55=0,I55=0),0,I55-F55) -> 0 | L55: =IF(OR(G55=0,J55=0),0,J55-G55) -> 4
A56: Finished | C56: 编制开发里程碑报告 | D56: 肖敏 | E56: 2014-08-31 | F56: 2014-08-31 | G56: 4 | H56: 2014-08-31 | I56: 2014-08-31 | J56: 4 | K56: 0 | L56: 0
A57: Finished | B57: 交付与验收 | E57: =IF(COUNTA(E58:E66)>0,MIN(E58:E66),"") -> 2014-09-01 | F57: =IF(COUNTA(F58:F66)>0,MAX(F58:F66),"") -> 2015-01-05 | G57: =SUM(G58:G66) -> 242 | H57: =IF(COUNTA(H58:H66)>0,MIN(H58:H66),"") -> 2014-09-01 | I57: =IF(COUNTA(I58:I66)>0,MAX(I58:I66),"") -> 2014-09-12 | J57: =SUM(J58:J66) -> 144 | K57: =SUM(K58:K66) -> 0
A58: =IF(AND(B58="",C58=""),"",IF(H58="","Wait",IF(I58="","Processing","Finished"))) -> Finished | C58: 系统部署 | D58: 肖敏，徐永刚 | E58: 2014-09-01 | F58: 2014-09-05 | G58: 20 | H58: 2014-09-01 | I58: 2014-09-05 | J58: 20 | K58: =IF(OR(F58=0,I58=0),0,I58-F58) -> 0 | L58: =IF(OR(G58=0,J58=0),0,J58-G58) -> 0
A59: Finished | C59: 系统联调 | D59: 肖敏，徐永刚 | E59: 2014-09-08 | F59: 2014-09-12 | G59: 120 | H59: 2014-09-08 | I59: 2014-09-12 | J59: 120 | K59: =IF(OR(F59=0,I59=0),0,I59-F59) -> 0 | L59: =IF(OR(G59=0,J59=0),0,J59-G59) -> 0
A60: Wait | C60: 客户培训 | D60: 肖敏，王晖，朱红军 | E60: 2014-09-15 | F60: 2014-09-17 | G60: 30 | K60: 0 | L60: 0
A61: Wait | C61: 初验 | D61: 肖敏,业主 | E61: 2014-09-18 | F61: 2014-09-19 | G61: 8 | K61: =IF(OR(F61=0,I61=0),0,I61-F61) -> 0 | L61: =IF(OR(G61=0,J61=0),0,J61-G61) -> 0
A62: =IF(AND(B62="",C62=""),"",IF(H62="","Wait",IF(I62="","Processing","Finished"))) -> Wait | C62: 发布交付基线 | D62: 袁晓冬，肖敏 | E62: 2014-09-19 | F62: 2014-09-19 | G62: 4 | J62: 4 | K62: =IF(OR(F62=0,I62=0),0,I62-F62) -> 0 | L62: =IF(OR(G62=0,J62=0),0,J62-G62) -> 0
A63: =IF(AND(B63="",C63=""),"",IF(H63="","Wait",IF(I63="","Processing","Finished"))) -> Wait | C63: 编制交付里程碑报告 | D63: 肖敏 | E63: 2014-09-19 | F63: 2014-09-19 | G63: 4 | K63: 0 | L63: 0
A64: Wait | C64: 试运行 | D64: 肖敏，徐永刚 | E64: 2014-09-22 | F64: 2014-12-31 | G64: 20 | K64: =IF(OR(F64=0,I64=0),0,I64-F64) -> 0 | L64: =IF(OR(G64=0,J64=0),0,J64-G64) -> 0
A65: =IF(AND(B65="",C65=""),"",IF(H65="","Wait",IF(I65="","Processing","Finished"))) -> Wait | C65: 第三方测试 | D65: 肖敏，检测中心 | E65: 2014-11-01 | F65: 2014-11-30 | G65: 20 | K65: =IF(OR(F65=0,I65=0),0,I65-F65) -> 0 | L65: =IF(OR(G65=0,J65=0),0,J65-G65) -> 0
A66: Wait | C66: 终验 | D66: 肖敏，业主 | E66: 2015-01-03 | F66: 2015-01-05 | G66: 16 | K66: =IF(OR(F66=0,I66=0),0,I66-F66) -> 0 | L66: =IF(OR(G66=0,J66=0),0,J66-G66) -> 0
A67: Finished | B67: 项目管理及其他 | E67: =IF(COUNTA(E68:E82)>0,MIN(E68:E82),"") -> 2014-04-07 | F67: =IF(COUNTA(F68:F82)>0,MAX(F68:F82),"") -> 2014-09-21 | G67: =SUM(G68:G82) -> 590 | H67: =IF(COUNTA(H68:H82)>0,MIN(H68:H82),"") -> 2014-04-07 | I67: =IF(COUNTA(I68:I82)>0,MAX(I68:I82),"") -> 2014-05-16 | J67: =SUM(J68:J69) -> 7 | K67: =SUM(K68:K69) -> 0
A68: =IF(AND(B68="",C68=""),"",IF(H68="","Wait",IF(I68="","Processing","Finished"))) -> Finished | C68: 编写项目开工报告 | D68: 肖敏 | E68: 2014-04-07 | F68: 2014-04-08 | G68: 4 | H68: 2014-04-07 | I68: 2014-04-08 | J68: 2 | K68: =IF(OR(F68=0,I68=0),0,I68-F68) -> 0 | L68: =IF(OR(G68=0,J68=0),0,J68-G68) -> -2
A69: Finished | C69: 项目估算 | D69: 肖敏 | E69: 2014-04-09 | F69: 2014-04-10 | G69: 4 | H69: 2014-04-09 | I69: 2014-04-10 | J69: 5 | K69: 0 | L69: 1
A70: Finished | C70: 制定项目整体计划 | D70: 肖敏，袁晓冬 | E70: 2014-04-11 | F70: 2014-04-14 | G70: 10 | H70: 2014-04-11 | I70: 2014-04-14 | J70: 8 | K70: 0 | L70: -2
A71: Finished | C71: 评审项目整体计划 | D71: 项目团队，领导，业主 | E71: 2014-04-15 | F71: 2014-04-15 | G71: 40 | H71: 2014-04-15 | I71: 2014-04-15 | J71: 36 | K71: 0 | L71: -4
A72: =IF(AND(B72="",C72=""),"",IF(H72="","Wait",IF(I72="","Processing","Finished"))) -> Finished | C72: 系统框架培训 | D72: 全体开发人员 | E72: 2014-05-05 | F72: 2014-05-05 | G72: 28 | H72: 2014-05-05 | I72: 2014-05-06 | J72: 28 | K72: =IF(OR(F72=0,I72=0),0,I72-F72) -> 1 | L72: =IF(OR(G72=0,J72=0),0,J72-G72) -> 0
A73: =IF(AND(B73="",C73=""),"",IF(H73="","Wait",IF(I73="","Processing","Finished"))) -> Finished | C73: 超图培训 | D73: 全体开发人员 | E73: 2014-05-16 | F73: 2014-05-16 | G73: 6 | H73: 2014-05-16 | I73: 2014-05-16 | J73: 6 | K73: =IF(OR(F73=0,I73=0),0,I73-F73) -> 0 | L73: =IF(OR(G73=0,J73=0),0,J73-G73) -> 0
A74: =IF(AND(B74="",C74=""),"",IF(H74="","Wait",IF(I74="","Processing","Finished"))) -> Finished | C74: 系统业务流程培训、项目规范培训 | D74: 项目团队 | E74: 2014-04-28 | F74: 2014-04-28 | G74: 24 | H74: 2014-04-28 | I74: 2014-04-28 | J74: 24 | K74: =IF(OR(F74=0,I74=0),0,I74-F74) -> 0 | L74: =IF(OR(G74=0,J74=0),0,J74-G74) -> 0
A75: Processing | C75: 维护详细进度计划 | D75: 肖敏 | E75: 2014-04-09 | F75: 2014-09-21 | G75: 16 | H75: 2014-04-09 | K75: 0 | L75: 0
A76: Processing | C76: 项目状态报告（编制报告，召开例会） | D76: 项目团队，领导，业主 | E76: 2014-04-09 | F76: 2014-09-21 | G76: 350 | H76: 2014-04-09 | K76: 0 | L76: 0
A77: Processing | C77: 识别及管理项目风险 | D77: 肖敏 | E77: 2014-04-09 | F77: 2014-09-21 | G77: 20 | H77: 2014-04-09 | K77: 0 | L77: 0
A78: Processing | C78: 识别及管理项目问题 | D78: 肖敏 | E78: 2014-04-09 | F78: 2014-09-21 | G78: 40 | H78: 2014-04-09 | K78: 0 | L78: 0
A79: Processing | C79: 收集和整理度量数据 | D79: 肖敏 | E79: 2014-04-09 | F79: 2014-09-21 | G79: 20 | H79: 2014-04-09 | K79: 0 | L79: 0
A80: Processing | C80: 配置项状态稽核 | D80: 袁晓冬 | E80: 2014-04-09 | F80: 2014-09-21 | G80: 12 | H80: 2014-04-09 | K80: 0 | L80: 0
A81: Wait | C81: 项目总结报告 | D81: 肖敏 | E81: 2014-09-20 | F81: 2014-09-21 | G81: 8 | K81: 0 | L81: 0
A82: Wait | C82: 项目资料整理 | D82: 肖敏 | E82: 2014-09-20 | F82: 2014-09-21 | G82: 8 | K82: 0 | L82: 0
A83: =IF(AND(B83="",C83=""),"",IF(H83="","Wait",IF(I83="","Processing","Finished"))) -> Wait | B83: 维护 | E83: =IF(COUNTA(E84:E85)>0,MIN(E84:E85),"") -> 2015-01-05 | F83: =IF(COUNTA(F84:F85)>0,MIN(F84:F85),"") -> 2017-01-04 | G83: =SUM(G84:G85) -> 160 | H83: =IF(COUNTA(H84:H85)>0,MIN(H84:H85),"") ->  | I83: =IF(COUNTA(I84:I85)>0,MAX(I84:I85),"") ->  | J83: =SUM(J84:J85) -> 0 | K83: =SUM(K84:K85) -> 0
A84: =IF(AND(B84="",C84=""),"",IF(H84="","Wait",IF(I84="","Processing","Finished"))) -> Wait | C84: 运行维护 | D84: 高宇庭 | E84: 2015-01-05 | F84: 2017-01-04 | G84: 160 | K84: =IF(OR(F84=0,I84=0),0,I84-F84) -> 0 | L84: 0
A85: =IF(AND(B85="",C85=""),"",IF(H85="","Wait",IF(I85="","Processing","Finished"))) ->  | K85: 0 | L85: 0

Sheet 参数 (hidden)
A1: 阶段 | C1: 工作分类
A2: 需求调研与分析 | C2: 需求
A3: 系统设计 | C3: 设计
A4: 编码与测试 | C4: 编码
A5: 交付与验收 | C5: 测试
A6: 维护 | C6: 其他
A7: 项目管理及其他
